Cogmind - Beta 13 @@@ ROGUE MODE // 2024.06.11 @ 17:45:35 Player: Mr.Morel Result: Destroyed by G-47 Trooper with Particle Gun Performance ------------- Evolutions (2) 1000 Regions Visited (4) 800 Robots Destroyed (51) 255 Value Destroyed (1063) 1063 Prototype IDs (5) 100 Alien Tech Used (0) 0 Bonus (0) 0 TOTAL SCORE: 3218 Bonus ------- None Cogmind --------- Core Integrity 0/550 Matter 206/300 Energy 66/100 System Corruption 0% Temperature Hot (255) Movement Core (50) Location -8/Materials Parts ------- > --- POWER (2) -------- (None) > --- PROPULSION (3) --- (None) > --- UTILITY (3) ------ Small Storage Unit Advanced Weight Redist. System > --- WEAPON (3) ------- (None) > --- INVENTORY (8) ---- Heavy Ion Engine Advanced Weight Redist. System Advanced Visual Processing Unit Mining Laser Peak State ------------ > --- POWER ------------ Heavy Ion Engine Nuclear Core > --- PROPULSION ------- Wheel Wheel Compact Wheel > --- UTILITY ---------- Small Storage Unit Advanced Weight Redist. System ECM Suite > --- WEAPON ----------- Beam Rifle Improved Medium Laser Improved Medium Laser > --- INVENTORY -------- Light Ion Engine Improved Ion Engine Heavy Ion Engine Advanced Weight Redist. System Advanced Visual Processing Unit Improved Medium Laser Mining Laser [Rating: 23] Favorites ----------- Power Light Nuclear Core Engine Ion Engine Power Core Light Nuclear Core Propulsion Light Treads Treads Light Treads Leg Aluminum Leg Wheel Wheel Flight Unit Improved Flight Unit Utility Medium Storage Unit Device Advanced Weight Redist. System Storage Medium Storage Unit Protection Light Armor Plating Weapon Heavy Assault Rifle Energy Gun Beam Rifle Energy Cannon Light EM Pulse Cannon Ballistic Gun Heavy Assault Rifle Special Weapon Mining Laser Build | -11 -10 -9 -9 -8 ------- Run | Yrd Mat Mat Min Mat Slots Evolved 4 | . . 2 . 2 Power 1 | . . 1 . . Propulsion 1 | . . . . 1 Utility 1 | . . . . 1 Weapon 1 | . . 1 . . Parts Attached 57 | 6 7 37 1 6 Power 11 | 1 1 7 . 2 Engine 9 | 1 . 7 . 1 Core 2 | . 1 . . 1 Reactor . | . . . . . Propulsion 13 | 2 2 8 . 1 Treads 7 | 2 . 5 . . Leg 2 | . 2 . . . Wheel 3 | . . 2 . 1 Hover . | . . . . . Flight 1 | . . 1 . . Utility 16 | 1 1 12 1 1 Device 8 | . 1 6 . 1 Storage 5 | 1 . 3 1 . Processor . | . . . . . Hackware . | . . . . . Protection 3 | . . 3 . . Artifact . | . . . . . Weapon 17 | 2 3 10 . 2 Energy Gun 6 | 1 . 3 . 2 Energy Cannon 4 | . 2 2 . . Ballistic Gun 6 | 1 1 4 . . Ballistic Cannon . | . . . . . Launcher . | . . . . . Special Weapon 1 | . . 1 . . Impact Weapon . | . . . . . Slashing Weapon . | . . . . . Piercing Weapon . | . . . . . Special Melee Weapon . | . . . . . Unidentified Prototypes 3 | . . 3 . . Parts Lost 19 | . 2 6 . 11 Power 5 | . 1 1 . 3 Propulsion 4 | . . 1 . 3 Utility 3 | . . 2 . 1 Weapon 7 | . 1 2 . 4 Highest Loss Streak 11 | . 1 3 . 11 To Critical Strikes . | . . . . . Average Slot Usage (%) 94 | . 93 95 100 75 Engine 10 | . 4 12 22 11 Core 8 | . 9 9 . 2 Treads 15 | . 24 13 . . Leg 4 | . 3 5 . . Wheel 2 | . . 1 22 15 Device 8 | . 8 7 11 15 Storage 10 | . 14 8 11 9 Protection 2 | . . 3 . . Energy Gun 8 | . . 10 22 20 Energy Cannon 8 | . 13 8 . . Ballistic Gun 12 | . 13 13 . . Naked Turns . | . . . . . Heaviest Build 33 | 12 15 33 28 31 Greatest Support 55 | 40 46 55 35 45 Greatest Overweight (x) 1 | . . 1 . 1 Average Overweight (x) . | . . . . . Largest Inventory Capacity 10 | 8 8 10 10 8 Average Capacity 8 | 7 8 8 9 8 Most Carried 10 | 4 5 10 9 7 Average Carried 4 | . 1 5 8 5 Final Capacity 10 | 8 8 10 8 8 Final Carried 9 | . 5 9 8 4 Class Distribution -------------------- 28% | Mutant 23% | Scavenger-Gunner 22% | Gunner 14% | Scavenger-Tank 10% | Scavenger-Mutant Dominant Class ---------------- Mutant | -10/Materials Scavenger-Gunner | -9/Materials Gunner | -9/Mines Gunner | -8/Materials Resources | -11 -10 -9 -9 -8 ----------- Run | Yrd Mat Mat Min Mat Matter Collected 1028 | 246 174 568 10 30 Remotely . | . . . . . Salvage Created 1760 | . 411 1307 . 42 Parts 109 | . 25 83 . 1 Haulers Intercepted 4 | . 1 3 . . Recyclers Shooed 4 | . 1 3 . . Parts Field Recycled . | . . . . . Retrieved Matter . | . . . . . Parts Self-Destructed . | . . . . . Prevented . | . . . . . Kills | -11 -10 -9 -9 -8 ------- Run | Yrd Mat Mat Min Mat Combat Hostiles Destroyed 35 | . 9 25 . 1 Melee 1 | . . 1 . . Guns 27 | . 5 21 . 1 Cannons 7 | . 4 3 . . Classes Destroyed 10 | . 6 4 . . Worker 3 | . 1 2 . . Builder 2 | . 1 1 . . Tunneler 1 | . 1 . . . Hauler 4 | . 1 3 . . Recycler 3 | . . 3 . . Watcher 3 | . . 3 . . Swarmer 14 | . 3 11 . . Grunt 13 | . 6 7 . . Duelist 2 | . . 1 . 1 Sentry 6 | . . 6 . . Best Kill Streak 6 | . 6 6 . 1 Combat Bots Only 6 | . 3 6 . 1 Max Kills in Single Turn 2 | . 1 2 . 1 Gunslinging 1 | . . 1 . . Exploded . | . . . . . Melee 1 | . . 1 . . Uniques/NPCs Destroyed . | . . . . . Combat | -11 -10 -9 -9 -8 -------- Run | Yrd Mat Mat Min Mat Hostile Shots Fired 320 | . 67 167 . 86 Missed 73 | . 15 47 . 11 Damage Taken 3215 | . 559 1376 . 1280 Core 767 | . 69 140 . 558 Absorbed by Shields . | . . . . . Core Remaining (%) 79 | 100 72 . 65 . Volleys Fired 124 | . 36 79 . 9 Largest 3 | . 2 3 . 3 Hottest 168 | . 80 135 . 168 Shots Fired 257 | . 60 176 . 21 Gun 202 | . 35 146 . 21 Cannon 55 | . 25 30 . . Launcher . | . . . . . Special . | . . . . . Kinetic 123 | . 35 88 . . Thermal 109 | . 25 63 . 21 Explosive . | . . . . . Electromagnetic 25 | . . 25 . . Robot Hit Streak 9 | . 8 9 . 7 Robot Miss Streak 4 | . 3 4 . 2 Penetration Max . | . . . . . Secondary Targets 6 | . . 5 . 1 Max Gunslinging Chain 1 | . . 1 . 1 Shots Hit Robots 152 | . 33 107 . 12 Core Hits 74 | . 19 51 . 4 Critical Kills 1 | . 1 . . . Critical Parts Destroyed 1 | . . 1 . . Critical Strikes 5 | . 1 4 . . Burn 3 | . . 3 . . Destroy 2 | . 1 1 . . Melee Attacks . | . . . . . Impact . | . . . . . Slashing . | . . . . . Piercing . | . . . . . Sneak Attacks . | . . . . . Combat Hostiles . | . . . . . Follow-up Attacks . | . . . . . Damage Inflicted 2642 | . 503 1905 . 234 Guns 1863 | . 302 1327 . 234 Cannons 674 | . 190 484 . . Explosions 41 | . . 41 . . Melee . | . . . . . Ramming 64 | . 11 53 . . Kinetic 1090 | . 302 788 . . Thermal 1091 | . 190 667 . 234 Explosive . | . . . . . Electromagnetic 397 | . . 397 . . Impact . | . . . . . Slashing . | . . . . . Piercing . | . . . . . Highest Corruption 2 | . . 2 2 . Average Corruption 2 | . . 2 2 . Corruption Purged . | . . . . . Corruption Blocked . | . . . . . Effects 2 | . . 1 1 . Energy Discharges 1 | . . . 1 . Data Loss (minor) 1 | . . 1 . . Overload Shots . | . . . . . Overflow Damage . | . . . . . Projectiles . | . . . . . Explosions . | . . . . . Melee . | . . . . . Knockbacks 2 | . . 2 . . Impact 2 | . . 2 . . Kinetic . | . . . . . Secondary . | . . . . . Self-Inflicted Damage 45 | . . 45 . . Shots 1 | . . 1 . . Rammed 11 | . 3 8 . . Targets Rammed 17 | . 3 14 . . Kicked 4 | . . 4 . . Crushed 2 | . . 2 . . Highest Temperature 702 | . 216 396 . 702 Average Temperature 145 | . 84 129 . 438 Received Heat Transfer 993 | . 174 459 . 360 Effects 21 | . . 5 . 16 Shutdowns 8 | . . 4 . 4 Energy Bleed 2 | . . 1 . 1 Matter Decay 2 | . . . . 2 Short Circuit 1 | . . . . 1 Damage (minor) 2 | . . . . 2 Damage (major) 4 | . . . . 4 Damage (core) 2 | . . . . 2 Siege Activations . | . . . . . Robots Corrupted . | . . . . . Combat Hostiles . | . . . . . Parts Fried 2 | . . 2 . . Impact Corruptions . | . . . . . Robots Melted . | . . . . . Combat Hostiles . | . . . . . Parts Melted 4 | . 1 2 . 1 Heat Transferred 2751 | . 407 1826 . 518 Parts Sabotaged . | . . . . . Parts Stolen . | . . . . . Parts Stripped . | . . . . . Power Chain Reactions 1 | . . 1 . . Alert | -11 -10 -9 -9 -8 ------- Run | Yrd Mat Mat Min Mat Peak Influence 332 | . 247 332 129 60 Initial 129 | . . 32 129 50 Average 128 | . 92 155 129 34 Maximum Alert Level 1 | . 1 1 . . Low Security (%) 76 | 100 86 67 100 100 Level 1 23 | . 13 32 . . Level 2 . | . . . . . Level 3 . | . . . . . Level 4 . | . . . . . Level 5 . | . . . . . High Security . | . . . . . Max Security . | . . . . . Squads Dispatched 6 | . 3 3 . . Investigation 3 | . 1 2 . . Extermination . | . . . . . Reinforcement 3 | . 2 1 . . Assault . | . . . . . Garrison . | . . . . . Intercept . | . . . . . Searches Triggered . | . . . . . Construction Impeded . | . . . . . Haulers Reinforced . | . . . . . Active Scanning Responses . | . . . . . Cargo Convoy Interrupts . | . . . . . Stealth | -11 -10 -9 -9 -8 --------- Run | Yrd Mat Mat Min Mat Distress Signals 5 | . 2 2 . 1 Communications Jammed . | . . . . . Distress Signals . | . . . . . Times Spotted 50 | . 15 30 . 5 Peak Tracking Total 6 | . 4 6 . 5 Tactical Retreats 2 | . 1 1 . . Traps | -11 -10 -9 -9 -8 ------- Run | Yrd Mat Mat Min Mat Traps Triggered 2 | . 1 1 . . Indirectly . | . . . . . Trap Hack Attempts . | . . . . . Triggered . | . . . . . Disarmed . | . . . . . Reprogrammed . | . . . . . Reused . | . . . . . Traps Extracted . | . . . . . Installed . | . . . . . Triggered . | . . . . . Machines | -11 -10 -9 -9 -8 ---------- Run | Yrd Mat Mat Min Mat Machines Disabled 1 | . 1 . . . Max in Single Turn 1 | . 1 . . . Machines Repaired . | . . . . . Machines Dismantled . | . . . . . Machines Sabotaged . | . . . . . Overloaded Fab Kills . | . . . . . Hacking | -11 -10 -9 -9 -8 --------- Run | Yrd Mat Mat Min Mat Machines Accessed 4 | . . 3 . 1 Terminals 2 | . . 1 . 1 Fabricators . | . . . . . Repair Stations . | . . . . . Recycling Units 1 | . . 1 . . Scanalyzers 1 | . . 1 . . Garrison Access . | . . . . . Total Hacks 15 | . . 11 . 4 Successful 9 | . . 9 . . Failed 6 | . . 2 . 4 Catastrophic . | . . . . . Database Lockouts . | . . . . . Manual . | . . . . . Terminals 7 | . . 3 . 4 Fabricators . | . . . . . Repair Stations . | . . . . . Recycling Units 4 | . . 4 . . Scanalyzers 4 | . . 4 . . Garrison Access . | . . . . . Terminal Hacks 3 | . . 3 . . Prototype ID Bank 1 | . . 1 . . Hauler Manifests 1 | . . 1 . . Zone Layout 1 | . . 1 . . Fabricator Hacks . | . . . . . Repair Station Hacks . | . . . . . Recycling Unit Hacks 2 | . . 2 . . Report Inventory 2 | . . 2 . . Scanalyzer 4 | . . 4 . . Insert Component 2 | . . 2 . . Analyze 2 | . . 2 . . Garrison Access Hacks . | . . . . . Unauthorized Hacks . | . . . . . Terminals . | . . . . . Fabricators . | . . . . . Repair Stations . | . . . . . Recycling Units . | . . . . . Scanalyzers . | . . . . . Garrison Access . | . . . . . Data Cores Recovered . | . . . . . Used . | . . . . . Hacking Detections 3 | . . 2 . 1 Full Trace Events 1 | . . 1 . . Feedback Events . | . . . . . Feedback Blocked . | . . . . . Robot Schematics Acquired . | . . . . . Robots Built . | . . . . . Authchips . | . . . . . Time . | . . . . . Total Robot Build Rating . | . . . . . Part Schematics Acquired 2 | . . 2 . . Parts Built . | . . . . . Authchips . | . . . . . Time . | . . . . . Total Part Build Rating . | . . . . . Parts Repaired . | . . . . . Time . | . . . . . Parts Recycled . | . . . . . Recycled Matter . | . . . . . Retrieved Matter . | . . . . . Retrieved Components . | . . . . . Parts Scanalyzed 2 | . . 2 . . Part Schematics Acquired 2 | . . 2 . . Parts Damaged . | . . . . . Bothacking | -11 -10 -9 -9 -8 ------------ Run | Yrd Mat Mat Min Mat Used RIF Installer . | . . . . . Robots Hacked . | . . . . . Non-combat . | . . . . . Combat . | . . . . . Robot Hacks Applied . | . . . . . Relay Couplers Released . | . . . . . Fabnet Peak Effective % . | . . . . . Robots Rewired . | . . . . . Allies Hacked . | . . . . . Hacks Repelled . | . . . . . Allies | -11 -10 -9 -9 -8 -------- Run | Yrd Mat Mat Min Mat Total Allies . | . . . . . Largest Group . | . . . . . Highest-Rated Group . | . . . . . Highest-Rated Ally . | . . . . . Total Orders . | . . . . . Ally Attacks . | . . . . . Total Damage . | . . . . . Kills . | . . . . . Allies Corrupted . | . . . . . Allies Melted . | . . . . . Intel | -11 -10 -9 -9 -8 ------- Run | Yrd Mat Mat Min Mat Robot Analysis Total . | . . . . . Derelict Logs Recovered 1 | . . . 1 . Drone Launches . | . . . . . Drone Recoveries . | . . . . . Exploration | -11 -10 -9 -9 -8 ------------- Run | Yrd Mat Mat Min Mat Turns Passed 2343 | 69 636 1416 140 82 Spaces Moved 1317 | 43 336 753 151 34 Core 10 | 10 . . . . Treads 747 | 33 272 442 . . Legs 307 | . 64 243 . . Wheels 253 | . . 68 151 34 Hover . | . . . . . Flight . | . . . . . Fastest Speed 50 | 50 120 90 90 86 Average Speed 136 | 134 152 141 90 89 Slowest Speed 190 | 160 160 190 90 115 Overloaded Moves . | . . . . . Propulsion Burnouts . | . . . . . Robots Hopped . | . . . . . Cave-ins Triggered . | . . . . . Exploration Rate (%) 27 | 3 37 51 42 6 Regions Visited 4 Branch Regions 1 Pre-discovered Areas . | . . . . . Known Exits Taken . | . . . . . Unknown Exits Taken 4 | 1 1 1 1 . Scrap Searched . | . . . . . Spaces Dug . | . . . . . Terrain Destroyed 6 | . . 6 . . Melee . | . . . . . Projectile . | . . . . . AOE 6 | . . 6 . . Terrain Rammed . | . . . . . Walls Destroyed . | . . . . . Machines Disabled . | . . . . . Actions | -11 -10 -9 -9 -8 --------- Run | Yrd Mat Mat Min Mat Total 1624 | 54 399 948 155 68 Wait 25 | . . 8 . 17 Move 1313 | 42 335 752 150 34 Hop . | . . . . . Pick Up 53 | 6 13 31 2 1 Fast Attach 3 | . . 3 . . Attach 28 | 6 3 15 . 4 Detach 5 | . . 5 . . Swap 26 | . 4 19 1 2 Drop 30 | . 5 22 2 1 Fire 124 | . 36 79 . 9 Melee . | . . . . . Ram 1 | . . 1 . . Kick 4 | . . 4 . . Crush 12 | . 3 9 . . Escape Stasis . | . . . . . Rewire . | . . . . . Trap . | . . . . . Miscellaneous . | . . . . . Route ------- -11/Scrapyard -10/Materials -9/Materials (discovered 2 exits: *Mat / [*Min]) -9/Mines (discovered 2 exits: *Mat x2) -8/Materials (discovered 1 exit: Fac) History --------- Turn | Location | Event 9 | -11/Scrapyard | Discovered new exit (range 15) 70 | -11/Scrapyard | Entered Materials 301 | -10/Materials | Build established: Mutant 598 | -10/Materials | Discovered new exit (range 10) 706 | -10/Materials | Entered another Materials area 706 | -9/Materials | Evolved 2 slots: Power x1, Weapon x1 931 | -9/Materials | Discovered new exit (range 10) 1359 | -9/Materials | Discovered new exit (range 16) 1694 | -9/Materials | Build established: Scavenger-Gunner 1988 | -9/Materials | Lost 3 parts (1n2w) 2122 | -9/Materials | Entered Mines 2146 | -9/Mines | Discovered new exit (range 12) 2194 | -9/Mines | Discovered new exit (range 8) 2262 | -9/Mines | Entered Materials 2262 | -8/Materials | Evolved 2 slots: Propulsion x1, Utility x1 2263 | -8/Materials | Identified exit to Factory 2308 | -8/Materials | Build established: Gunner 2312 | -8/Materials | Core integrity fell below 50% 2332 | -8/Materials | Core integrity fell below 20% 2344 | -8/Materials | Destroyed by G-47 Trooper with Particle Gun Last Messages --------------- Overheating: ECM Suite damaged (-2). Overheating: Matter decay (-49). Power failure, Hvy. Ion Engine shutdown. Overheating: Beam Rifle damaged (-10). Beam Rifle destroyed. ECM Suite destroyed. Hvy. Ion Engine destroyed. Power failure, Imp. Ion Engine shutdown. Com. Wheel destroyed. Overheating: Imp. Ion Engine damaged (-17). Slug penetrates Wall. K-01 Serf collects debris. Slug penetrates Wall. Imp. Ion Engine destroyed. Slug penetrates Wall. K-01 Serf collects debris. Overheating: Energy bleed (-19). Imp. Medium Laser destroyed. Slug penetrates Wall. K-01 Serf collects debris. Map ----- +----------------------------------------------------+ | ????????????????????????????????????????????? | | ????????????????????????????????????????????? | | ????????????????????????????????????????????? | | ????????????????????????????????????????????? | | ????????????????????????????????????????????? | | ????????????????????????????????????????????? | | ?????????????????????? ???????????????????? | | ?????????????????????? #??????????????????? | | ?????????????????????? #??????????????????? | | ?????????????????????? #######????????????? | | ?????????????????????# ??????????? | | ?????????????????????# ???????????? | | ?????????????????????# "???????????? | | ?????????????????????#]] ""???????????? | | ?????????????????????#]* """??????????? | | ?????????????????????# """"?????????? | | ??????????############ """ ????????? | | ??????????# ???????? | | ???######## ???????? | | ???# # ??????? | | ???# # h ??????? | | ???# """ + % ??????? | | ???# """ # #########g########????????????? | | ???# """ %# #????# gk T #???????????????? | | ???# # #????# * #???????????????? | | ???############????#@ #???????????????? | | ???????????????????# #???????????????? | | ???????????????????# #???????????????? | | ???????????????????# """ #???????????????? | | ???????????????????# """ #???????????????? | | ???????????????????# """ #???????????????? | | ???????????????????# #???????????????? | | ???????????????????##########???????????????? | | ????????????????????????????????????????????? | | ????????????????????????????????????????????? | | ????????????????????????????????????????????? | | ????????????????????????????????????????????? | | ????????????????????????????????????????????? | | ????????????????????????????????????????????? | | ????????????????????????????????????????????? | | ????????????????????????????????????????????? | | ????????????????????????????????????????????? | | ????????????????????????????????????????????? | | ????????????????????????????????????????????? | | ????????????????????????????????????????????? | | | | | | | | | | | +----------------------------------------------------+ Best States ------------- Heat Dissipation 38 Energy Generation 23 Energy Capacity 445 Matter Stores 300 Matter Capacity 300 Sight Range 16 Terrain Scan Density 10 ECM Strength 1 Additional Mass Support 9 Armor Coverage 300 Evasion (%) 55 Recoil Reduction 2 Item Schematics ----------------- Adv. Weight Redist. System | -9/Materials | Scanalyzed Hvy. Assault Rifle | -9/Materials | Scanalyzed Robot Schematics ------------------ None Fabricated ------------ Nothing Alien Tech Used ----------------- None Achievements -------------- None Challenges ------------ None Game ------ Seed BiomechanicalEnergyTorch Manual? 0 Play Time 00:30:34 Cumulative 10.3 hours Start 2024.06.06 @ 12:16:10 End 2024.06.11 @ 17:45:35 Sessions 3 Manual Loads 0 Difficulty Rogue Special Mode None Game No. 24 Rogue 24 Adventurer 0 Explorer 0 Win Type - Total 0 Types 0/0/0/0/0/0/0/0/0 Lore% 12 Gallery% 17 Achievement% 14 Wizard Run 0 Options --------- Layout 2 ASCII 0 Keyboard 0 Movement Mouse Keybinds 0 Fullscreen 1 Font 24/CogTall Map View 50x44 Zoom Use 0% Tactical HUD 0 Map Filters NONE Filters NONE Steam 1 RUN: 1509afb7-47fd-41be-ac27-aa8300912a08